bitfinex-derivatives/quotes_BTCF0:USTF0_20251111
["timestamp","ask_amount","ask_price","bid_price","bid_amount"]
[1762848940083,0.2615007,105100.0,105090.0,0.55607145]
[1762848940284,0.15518004,105100.0,105090.0,0.55607145]
[1762848942193,0.15518004,105100.0,105090.0,0.46088335]
[1762848942991,0.15518004,105100.0,105090.0,0.55607135]
[1762848943994,0.2615007,105100.0,105090.0,0.04456269]
[1762848944189,0.36782136,105100.0,105090.0,0.04456269]
[1762848944383,0.2615007,105100.0,105090.0,0.04456269]
[1762848944588,0.2615007,105100.0,105090.0,0.42975069]
[1762848944786,0.2615007,105100.0,105090.0,0.37607135]
[1762848945095,0.2615007,105100.0,105090.0,0.57607135]
[1762848946493,0.2615007,105100.0,105090.0,0.15088335]
[1762848946681,0.2615007,105100.0,105090.0,0.36607135]
[1762848947089,0.2615007,105100.0,105090.0,0.54607135]
[1762848948493,0.2615007,105100.0,105090.0,0.24607135]
[1762848948692,0.2615007,105100.0,105090.0,0.54607135]
[1762848954199,0.00334114,105100.0,105090.0,0.55957135]
[1762848954498,0.1517709,105120.0,105110.0,0.1515499]
[1762848954696,0.058808,105120.0,105110.0,0.98983994]
[1762848954890,0.26028956,105120.0,105110.0,0.73983994]
[1762848955090,0.26028956,105120.0,105110.0,0.76024325]
[1762848955494,0.1539689,105120.0,105110.0,0.94024325]
[1762848955695,0.1413089,105120.0,105110.0,0.94024325]
[1762848956196,0.1539089,105120.0,105110.0,0.62024325]
[1762848956591,0.1539089,105120.0,105110.0,0.74024325]
[1762848957101,0.1539089,105120.0,105110.0,0.91224325]
[1762848957898,0.1539089,105120.0,105110.0,0.52707335]
[1762848958202,0.26022956,105120.0,105110.0,0.15278335]
[1762848958397,0.26022956,105120.0,105110.0,0.51438335]
[1762848958798,0.26022956,105120.0,105110.0,0.40806269]
[1762848959101,0.26022956,105120.0,105110.0,0.51438335]
[1762848959293,0.26022956,105120.0,105110.0,0.04646269]
[1762848959494,0.36655022,105120.0,105110.0,0.40806269]
[1762848959696,0.26022956,105120.0,105110.0,0.40906269]
[1762848960096,0.26022956,105120.0,105110.0,0.51538335]
[1762848960396,0.26022956,105120.0,105110.0,0.51238335]
[1762848961900,0.26022956,105120.0,105110.0,0.60755325]
[1762848962805,0.26022956,105120.0,105110.0,0.51238335]
[1762848963109,0.36640906,105120.0,105110.0,0.00073269]
[1762848963311,0.1507199,105110.0,105100.0,0.02285314]
[1762848963506,0.1529179,105110.0,105100.0,0.02358583]
[1762848963812,0.1529179,105110.0,105100.0,0.13116107]
[1762848964004,0.25916798,105110.0,105100.0,0.13116107]
[1762848964510,0.1529179,105110.0,105100.0,0.13216107]
[1762848964707,0.25916798,105110.0,105100.0,0.13416107]
[1762848965903,0.25916798,105110.0,105100.0,0.08928107]
[1762848967413,0.25916798,105110.0,105100.0,0.00387583]
[1762848967605,0.25916798,105110.0,105100.0,0.00314314]
[1762848969112,0.150738,105090.0,105080.0,0.49184524]
[1762848969304,0.25918608,105090.0,105080.0,0.10884793]
[1762848969507,0.25918608,105090.0,105080.0,0.08613793]
[1762848970312,0.25918608,105090.0,105080.0,0.09013793]
[1762848970713,0.25918608,105090.0,105080.0,0.00673269]
[1762848971106,0.36543616,105090.0,105080.0,0.006]
[1762848973015,0.25699718,105080.0,105070.0,0.00014314]
[1762848973214,0.62079518,105080.0,105070.0,0.00014314]
[1762848974415,0.1507562,105070.0,105060.0,0.08540524]
[1762848974712,0.1507562,105070.0,105050.0,0.11915665]
[1762848974713,0.1507652,105060.0,105050.0,0.11915665]
[1762848975011,0.62081328,105060.0,105050.0,0.09644665]
[1762848975211,0.62081328,105060.0,105050.0,0.01104141]
[1762848975414,0.62081328,105060.0,105050.0,0.00073269]
[1762848975611,0.62081328,105060.0,105050.0,0.03649469]
[1762848975908,0.62081328,105060.0,105050.0,0.05866469]
[1762848976115,0.62381328,105060.0,105050.0,0.05866469]
[1762848976316,0.62581328,105060.0,105050.0,0.05866469]
[1762848977018,0.5195632,105060.0,105050.0,0.05866469]
[1762848977210,0.62581328,105060.0,105050.0,0.05866469]
[1762848979313,0.62581328,105060.0,105050.0,0.01378469]
[1762848979911,0.62581328,105060.0,105050.0,0.013052]
[1762848980112,0.1535743,105050.0,105040.0,0.04455314]
[1762848980415,0.1535743,105050.0,105040.0,0.04834583]
[1762848980416,0.1557723,105050.0,105040.0,0.04834583]
[1762848981320,0.060548,105050.0,105040.0,0.35982921]
[1762848981513,0.060548,105050.0,105040.0,0.36982921]
[1762848981514,0.0984223,105050.0,105040.0,0.36982921]
[1762848981713,0.0984223,105050.0,105040.0,0.51982921]
[1762848981905,0.1213723,105050.0,105040.0,0.51982921]
[1762848982112,0.026148,105050.0,105040.0,0.53279159]
[1762848982513,0.1213723,105050.0,105040.0,0.53279159]
[1762848982823,0.1421623,105050.0,105040.0,0.53279159]
[1762848983213,0.1441623,105050.0,105040.0,0.53279159]
[1762848983820,0.1431623,105050.0,105040.0,0.53279159]
[1762848985019,0.1431623,105050.0,105040.0,0.89447159]
[1762848985414,0.1431623,105050.0,105040.0,0.52923829]
[1762848985615,0.1567723,105050.0,105040.0,0.41992821]
[1762848985815,0.0984223,105050.0,105040.0,0.92422169]
[1762848986021,0.1213723,105050.0,105040.0,0.92422169]
[1762848986222,0.1431623,105050.0,105040.0,0.92422169]
[1762848987418,0.09535614,105070.0,105060.0,0.04765]
[1762848987615,0.09755414,105070.0,105060.0,0.53984797]
[1762848988120,0.14229414,105070.0,105060.0,0.53984797]
[1762848988711,0.14529414,105070.0,105060.0,0.53984797]
[1762848988913,0.00534114,105070.0,105060.0,1.1497432]
[1762848989220,0.00534114,105070.0,105060.0,1.24492237]
[1762848989915,0.10054724,105070.0,105060.0,1.24492237]
[1762848990113,0.10154724,105070.0,105060.0,1.24492237]
[1762848990416,0.09954724,105070.0,105060.0,1.24492237]
[1762848990808,0.00334114,105070.0,105060.0,1.24592237]
[1762848991120,0.09754724,105070.0,105060.0,1.24592237]
[1762848991424,0.09754724,105070.0,105060.0,1.24792237]
[1762848991720,0.00234114,105070.0,105060.0,1.14167229]
[1762848991920,0.00234114,105070.0,105060.0,1.24792237]
[1762848992519,0.00014314,105070.0,105060.0,1.24792237]
[1762848992712,0.1535441,105090.0,105080.0,0.04441]
[1762848992918,0.1557421,105090.0,105080.0,0.15139277]
[1762848993119,0.1557421,105090.0,105080.0,0.28139277]
[1762848993728,0.1557421,105090.0,105080.0,0.37658987]
[1762848994030,0.1577421,105090.0,105080.0,0.37658987]
[1762848994221,0.1441321,105090.0,105080.0,0.53923987]
[1762848994530,0.1441321,105090.0,105080.0,1.13913591]
[1762848994531,0.002,105090.0,105080.0,1.13913591]
[1762848998223,0.002,105090.0,105080.0,1.28473591]
[1762848998423,0.00014314,105100.0,105090.0,0.152408]
[1762848998721,0.1535199,105120.0,105110.0,0.04765]
[1762848999031,0.1557179,105120.0,105110.0,0.04514269]
[1762849000527,0.26196798,105120.0,105110.0,0.00073269]
[1762849000726,0.26396798,105120.0,105110.0,0.00073269]
[1762849000920,0.062548,105120.0,105110.0,0.04514269]
[1762849001123,0.004198,105120.0,105110.0,0.70243761]
[1762849001526,0.005198,105120.0,105110.0,0.70243761]
[1762849001729,0.00014314,105130.0,105120.0,0.1523809]
[1762849002035,0.04488314,105130.0,105120.0,0.91242901]
[1762849002533,0.00014314,105130.0,105120.0,0.91242901]
[1762849002832,0.15364494,105130.0,105120.0,0.40820803]
[1762849003522,0.15564494,105130.0,105120.0,0.50336893]
[1762849003926,0.15764494,105130.0,105120.0,0.50336893]
[1762849004122,0.15764494,105130.0,105120.0,0.60961901]
[1762849004434,0.15764494,105130.0,105120.0,0.90961901]
[1762849004731,0.15764494,105130.0,105120.0,0.71961901]
[1762849005234,0.15764494,105130.0,105120.0,0.73242901]
[1762849005531,0.06249314,105130.0,105120.0,0.90242901]
[1762849006125,0.15764494,105130.0,105120.0,0.90242901]
[1762849007023,0.15764494,105130.0,105120.0,0.40820803]
[1762849007222,0.15764494,105130.0,105120.0,0.51445811]
[1762849008534,0.15764494,105130.0,105120.0,0.85961901]
[1762849008722,0.15764494,105130.0,105120.0,0.51445811]
[1762849009927,0.15764494,105130.0,105120.0,0.00219803]
[1762849010229,0.15764494,105130.0,105120.0,0.02442803]
[1762849010427,0.15764494,105130.0,105120.0,0.04546803]
[1762849010621,0.15764494,105130.0,105120.0,0.24687901]
[1762849010828,0.15764494,105130.0,105120.0,0.14062893]
[1762849011030,0.15764494,105130.0,105120.0,0.24687901]
[1762849011229,0.15764494,105130.0,105120.0,0.57956901]
[1762849013734,0.14403494,105130.0,105120.0,0.57956901]
[1762849014735,0.14403494,105130.0,105120.0,0.25956901]
[1762849014930,0.14403494,105130.0,105120.0,0.53956901]
[1762849015126,0.12224494,105130.0,105120.0,0.53956901]
[1762849016027,0.14418494,105130.0,105120.0,0.53956901]
[1762849016928,0.14418494,105130.0,105120.0,0.25956901]
[1762849017236,0.14418494,105130.0,105120.0,0.38956901]
[1762849017533,0.14418494,105130.0,105120.0,0.52956901]
[1762849018533,0.05786,105110.0,105100.0,0.00014314]
[1762849018733,0.1530299,105110.0,105100.0,0.00234117]
[1762849019031,0.1530299,105110.0,105100.0,0.04547117]
[1762849019228,0.1530299,105110.0,105100.0,0.15172125]
[1762849019428,0.1530299,105110.0,105100.0,0.04547117]
[1762849019629,0.1530299,105110.0,105100.0,0.04647117]
[1762849020828,0.1412799,105110.0,105100.0,0.65754017]
[1762849021139,0.1412799,105110.0,105100.0,0.61714729]
[1762849021328,0.1412799,105110.0,105100.0,0.42136117]
[1762849021725,0.1412799,105110.0,105100.0,0.51654017]
[1762849022238,0.1412799,105110.0,105100.0,0.42136117]
[1762849022438,0.1540299,105110.0,105100.0,0.42136117]
[1762849023534,0.1412799,105110.0,105100.0,0.42136117]
[1762849024540,0.1540299,105110.0,105100.0,0.42136117]
[1762849024931,0.1540299,105110.0,105100.0,0.55417222]
[1762849025134,0.1540299,105110.0,105100.0,0.04547117]
[1762849025342,0.28684095,105110.0,105100.0,0.00014314]
[1762849026437,0.153048,105090.0,105080.0,0.40592009]
[1762849026839,0.153048,105090.0,105080.0,0.04543812]
[1762849027045,0.153048,105090.0,105080.0,0.00230812]
[1762849027242,0.28585905,105090.0,105080.0,0.00011009]
[1762849027637,0.1530571,105080.0,105070.0,0.00014314]
[1762849028736,0.15314978,105080.0,105070.0,0.00114314]
[1762849029443,0.15314978,105080.0,105070.0,0.00214314]
[1762849029841,0.04520268,105080.0,105070.0,0.28829832]
[1762849030150,0.15314978,105080.0,105070.0,0.04747117]
[1762849031736,0.15314978,105080.0,105070.0,0.14267737]
[1762849032144,0.15314978,105080.0,105070.0,0.04747117]
[1762849033646,0.15314978,105080.0,105070.0,0.14267737]
[1762849034136,0.15314978,105080.0,105070.0,0.00434117]
[1762849035239,0.28596083,105080.0,105070.0,0.00214314]
[1762849037449,0.15314978,105080.0,105070.0,0.00214314]
[1762849037849,0.64900083,105080.0,105070.0,0.00214314]
[1762849041350,0.51618978,105080.0,105070.0,0.00434117]
[1762849041546,0.42099268,105080.0,105070.0,0.16809117]
[1762849041853,0.15314978,105080.0,105070.0,0.30809117]
[1762849044454,0.05795268,105080.0,105070.0,0.53610832]
[1762849045048,0.15314978,105080.0,105070.0,0.44090222]
[1762849045250,0.15314978,105080.0,105070.0,0.04809117]
[1762849046956,0.05795268,105080.0,105070.0,0.04809117]
[1762849047256,0.02188268,105080.0,105070.0,0.19376222]
[1762849047451,9.268e-05,105080.0,105070.0,1.13363402]
[1762849048156,0.15338564,105100.0,105090.0,0.04375]
[1762849048453,0.15338564,105100.0,105090.0,0.31909803]
[1762849048653,0.15338564,105100.0,105090.0,0.04594803]
[1762849049352,0.15538564,105100.0,105090.0,0.04594803]
[1762849049559,0.15638564,105100.0,105090.0,0.04594803]
[1762849050853,0.15638564,105100.0,105090.0,0.00219803]
[1762849052359,0.15638564,105100.0,105090.0,0.02362803]
[1762849052759,0.15638564,105100.0,105090.0,0.04594803]
[1762849054855,0.26267597,105100.0,105090.0,0.15223836]
[1762849055358,0.26267597,105100.0,105090.0,0.31223836]
[1762849055559,0.26267597,105100.0,105090.0,0.15223836]
[1762849056152,0.04845314,105100.0,105090.0,0.60057636]
[1762849056358,0.02531314,105100.0,105090.0,0.96329636]
[1762849056859,0.14363214,105100.0,105090.0,0.86810836]
[1762849057050,0.14363214,105100.0,105090.0,0.96329636]
[1762849057560,0.14363214,105100.0,105090.0,0.86810836]
[1762849057762,0.15623214,105100.0,105090.0,0.52810836]
[1762849057961,0.15623214,105100.0,105090.0,0.65810836]
[1762849058663,0.15623214,105100.0,105090.0,0.84810836]
[1762849058961,0.15623214,105100.0,105090.0,0.87465539]
[1762849059157,0.15623214,105100.0,105090.0,0.96984339]
[1762849059158,0.15423214,105100.0,105090.0,0.96984339]
[1762849059461,0.04645314,105100.0,105090.0,0.87565539]
[1762849059652,0.00014314,105100.0,105090.0,1.11388188]
[1762849059959,0.00014314,105100.0,105090.0,1.11288188]
[1762849060159,0.00014314,105100.0,105090.0,1.11388188]
[1762849061365,0.1404782,105120.0,105110.0,0.05667]
[1762849061660,0.1404782,105120.0,105110.0,0.48170539]
[1762849062156,0.1530782,105120.0,105110.0,0.05886803]
[1762849062363,0.1530782,105120.0,105110.0,0.04594803]
[1762849062656,0.1550782,105120.0,105110.0,0.04594803]
[1762849062861,0.1560782,105120.0,105110.0,0.04594803]
[1762849064660,0.1540782,105120.0,105110.0,0.04694803]
[1762849064856,0.1530782,105120.0,105110.0,0.04794803]
[1762849065378,0.1530782,105120.0,105110.0,0.04594803]
[1762849065567,0.1530782,105120.0,105110.0,0.04794803]
[1762849065950,0.1530782,105120.0,105110.0,0.04694803]
[1762849067267,0.1530782,105120.0,105110.0,0.04594803]
[1762849068165,0.1530799,105110.0,105100.0,0.40637314]
[1762849068360,0.1530799,105110.0,105100.0,0.40857117]
[1762849068562,0.1530799,105110.0,105100.0,0.55178362]
[1762849068865,0.1530799,105110.0,105100.0,0.67178362]
[1762849069065,0.1530799,105110.0,105100.0,0.55178362]
[1762849069266,0.1530799,105110.0,105100.0,0.81178362]
[1762849072169,0.1530799,105110.0,105100.0,0.69178362]
[1762849072369,0.1530799,105110.0,105100.0,0.55178362]
[1762849073264,0.1530799,105110.0,105100.0,0.56493362]
[1762849074274,0.1530799,105110.0,105100.0,0.82493362]
[1762849075470,0.1530799,105110.0,105100.0,0.9459656]
[1762849075872,0.1530799,105110.0,105100.0,0.82693362]
[1762849077071,0.1530799,105110.0,105100.0,0.9459656]
[1762849078172,0.1530799,105110.0,105100.0,0.6859656]
[1762849078568,0.1530799,105110.0,105100.0,0.6728156]
[1762849079073,0.1530799,105110.0,105100.0,0.9559656]
[1762849079575,0.1530799,105110.0,105100.0,0.9549656]
[1762849080173,0.1530799,105110.0,105100.0,0.6849656]
[1762849080570,0.1530799,105110.0,105100.0,0.6839656]
[1762849080873,0.0951699,105110.0,105100.0,1.20744168]
[1762849081061,0.1389266,105120.0,105110.0,0.01292]
[1762849081268,0.0951666,105120.0,105110.0,0.55003597]
[1762849081569,0.0951666,105120.0,105110.0,0.66906795]
[1762849081769,0.13906074,105130.0,105120.0,0.05666]
[1762849081972,0.13906074,105130.0,105120.0,0.91353411]
[1762849082173,0.13906074,105130.0,105120.0,1.03256609]
[1762849082776,0.13906074,105130.0,105120.0,0.82009001]
[1762849082968,0.13906074,105130.0,105120.0,1.03256609]
[1762849083480,0.1515027,105140.0,105130.0,0.05666]
[1762849083674,0.25774074,105140.0,105130.0,0.16509607]
[1762849083874,0.25774074,105140.0,105130.0,0.27509607]
[1762849084073,0.25774074,105140.0,105130.0,0.46509607]
[1762849084469,0.1515027,105140.0,105130.0,0.16509607]
[1762849084779,0.0971427,105140.0,105130.0,0.41509607]
[1762849085074,0.04376,105150.0,105140.0,0.01315]
[1762849085279,0.1388937,105150.0,105140.0,0.52715254]
[1762849085971,0.1520637,105150.0,105140.0,0.52715254]
[1762849086171,0.1520637,105150.0,105140.0,0.80715254]
[1762849086172,0.1171737,105150.0,105140.0,0.80715254]
[1762849086373,0.1201737,105150.0,105140.0,0.80715254]
[1762849086575,0.1201737,105150.0,105140.0,0.81890811]
[1762849087284,0.0981337,105150.0,105140.0,0.81890811]
[1762849087473,0.003,105150.0,105140.0,1.05607302]
[1762849087777,0.1001337,105150.0,105140.0,0.96093032]
[1762849088779,0.005,105150.0,105140.0,1.15117987]
[1762849088980,0.0951306,105160.0,105150.0,0.1515637]
[1762849089186,0.0951306,105160.0,105150.0,0.49480254]
[1762849089881,0.0951209,105170.0,105160.0,0.01315]
[1762849090176,0.0951209,105170.0,105160.0,0.81727254]
[1762849090384,0.0951126,105180.0,105170.0,0.05666]
[1762849090573,0.0951126,105180.0,105170.0,0.41503254]
[1762849091288,0.1388726,105180.0,105170.0,0.16503254]
[1762849091481,0.1520426,105180.0,105170.0,0.05885803]
[1762849091777,0.0951126,105180.0,105170.0,0.42503254]
[1762849093680,0.1388726,105180.0,105170.0,0.16503254]
[1762849094085,0.1388726,105180.0,105170.0,0.45503254]
[1762849094485,0.1388726,105180.0,105170.0,0.81731254]
[1762849094887,0.1388726,105180.0,105170.0,0.96291254]
[1762849095187,0.1388726,105180.0,105170.0,0.67291254]
[1762849095388,0.1388726,105180.0,105170.0,0.97291254]
[1762849096189,0.1388726,105180.0,105170.0,0.97287254]
[1762849096487,0.1520426,105180.0,105170.0,0.67287254]
[1762849097690,0.1388726,105180.0,105170.0,0.67287254]
[1762849098992,0.1388726,105180.0,105170.0,0.56669803]
[1762849099292,0.1388726,105180.0,105170.0,0.67287254]
[1762849100188,0.1515126,105180.0,105170.0,0.67287254]
[1762849100389,0.1515126,105180.0,105170.0,0.55354803]
[1762849100892,0.1515126,105180.0,105170.0,0.40794803]
[1762849101084,0.1515126,105180.0,105170.0,0.51412254]
[1762849103488,0.1515126,105180.0,105170.0,0.04570803]
[1762849105095,0.01317,105190.0,105170.0,0.16859803]
[1762849105400,0.1407485,105200.0,105190.0,0.05672]
[1762849105601,0.1533885,105200.0,105190.0,0.05891803]
[1762849105783,0.1407485,105200.0,105190.0,0.58721437]
[1762849106392,0.1407485,105200.0,105190.0,0.68231187]
[1762849106593,0.0950822,105210.0,105200.0,0.05672]
[1762849106782,0.1407422,105210.0,105200.0,0.45509254]
[1762849106983,0.1407422,105210.0,105200.0,0.34891803]
[1762849107205,0.1407422,105210.0,105200.0,0.4917434]
[1762849108197,0.1437422,105210.0,105200.0,0.4917434]
[1762849108397,0.1437422,105210.0,105200.0,0.5868319]
[1762849108596,0.1212822,105210.0,105200.0,0.5868319]
[1762849108798,0.1212822,105210.0,105200.0,0.9491119]
[1762849108999,0.0980822,105210.0,105200.0,0.9491119]
[1762849109186,0.0980822,105210.0,105200.0,1.14353852]
[1762849109187,0.003,105210.0,105200.0,1.14353852]
[1762849109388,0.0950744,105220.0,105210.0,0.05672]
[1762849109699,0.0950744,105220.0,105210.0,0.51334465]
[1762849109899,0.0950744,105220.0,105210.0,0.31891803]
[1762849110291,0.0950744,105220.0,105210.0,0.65676712]
[1762849111602,0.0950744,105220.0,105210.0,0.5647005]
[1762849111603,0.1417344,105220.0,105210.0,0.5647005]
[1762849111793,0.1447344,105220.0,105210.0,0.5647005]
[1762849111994,0.1447344,105220.0,105210.0,0.6847005]
[1762849112705,0.11050383,105220.0,105210.0,0.6847005]
[1762849112901,0.11050383,105220.0,105210.0,0.8347005]
[1762849114806,0.11050383,105220.0,105210.0,0.5647005]
[1762849115005,0.11050383,105220.0,105210.0,0.7047005]
[1762849115405,0.11050383,105220.0,105210.0,0.8503005]
[1762849115598,0.11050383,105220.0,105210.0,0.4679405]
[1762849115906,0.11050383,105220.0,105210.0,0.3479405]
[1762849116096,0.11050383,105220.0,105210.0,0.7101405]
[1762849116500,0.11050383,105220.0,105210.0,0.8301405]
[1762849117407,0.11050383,105220.0,105210.0,0.7101405]
[1762849117910,0.12314383,105220.0,105210.0,0.3479405]
[1762849118107,0.12314383,105220.0,105210.0,0.7100605]
[1762849118293,0.12314383,105220.0,105210.0,0.19162803]
[1762849118700,0.12314383,105220.0,105210.0,0.1456]
[1762849118904,1.3733795,105210.0,105200.0,0.00014314]
[1762849119107,1.37557753,105210.0,105200.0,0.0231358]
[1762849119302,1.37557753,105210.0,105200.0,0.0447058]
[1762849120205,1.37757753,105210.0,105200.0,0.0447058]
[1762849120999,1.37757753,105210.0,105200.0,0.2947058]
[1762849121413,0.14493753,105210.0,105200.0,0.50202242]
[1762849121915,0.14493753,105210.0,105200.0,0.59711092]
[1762849122317,0.00419803,105210.0,105200.0,0.59711092]
[1762849122615,0.12334445,105220.0,105210.0,0.05647]
[1762849122912,0.12334445,105220.0,105210.0,0.34866803]
[1762849123304,0.07768445,105220.0,105210.0,1.00021415]
[1762849123507,0.07768445,105220.0,105210.0,1.04736223]
[1762849123711,0.12334445,105220.0,105210.0,1.04736223]
[1762849123907,0.12634445,105220.0,105210.0,0.75736223]
[1762849124114,0.13998445,105220.0,105210.0,0.56293561]
[1762849125217,0.12734445,105220.0,105210.0,0.85293561]
[1762849125426,0.12734445,105220.0,105210.0,0.56293561]
[1762849125608,0.13998445,105220.0,105210.0,0.82293561]
[1762849126218,0.12734445,105220.0,105210.0,0.82293561]
[1762849128311,0.12734445,105220.0,105210.0,0.56293561]
[1762849128517,0.10575433,105220.0,105210.0,0.56293561]
[1762849128818,0.10575433,105220.0,105210.0,0.66896406]
[1762849129502,0.09311433,105220.0,105210.0,0.77896406]
[1762849130114,0.09311433,105220.0,105210.0,0.66896406]
[1762849130421,0.09311433,105220.0,105210.0,0.93896406]
[1762849131217,0.09311433,105220.0,105210.0,0.66896406]
[1762849131611,0.09311433,105220.0,105210.0,0.79896406]
[1762849132219,0.09311433,105220.0,105210.0,0.66896406]
[1762849132818,0.09311433,105220.0,105210.0,0.79896406]
[1762849133020,0.09311433,105220.0,105210.0,0.95896406]
[1762849134322,0.09311433,105220.0,105210.0,0.66896406]
[1762849134510,0.04966,105220.0,105210.0,0.79884406]
[1762849134819,0.1447372,105220.0,105210.0,0.79884406]
[1762849135018,0.1447372,105220.0,105210.0,0.79880406]
[1762849135220,0.1447372,105220.0,105210.0,0.66880406]
[1762849135420,0.1447372,105220.0,105210.0,0.79880406]
[1762849135610,0.1447372,105220.0,105210.0,0.66880406]
[1762849135916,0.1447372,105220.0,105210.0,0.92880406]
[1762849136120,0.1447372,105220.0,105210.0,0.56692406]
[1762849136321,0.1447372,105220.0,105210.0,0.92876406]
[1762849137022,0.1447372,105220.0,105210.0,1.02384356]
[1762849137225,0.1447372,105220.0,105210.0,0.66200356]
[1762849137418,0.1447372,105220.0,105210.0,0.56692406]
[1762849137619,0.1447372,105220.0,105210.0,1.01376615]
[1762849138222,0.1447372,105220.0,105210.0,0.89376615]
[1762849138422,0.1447372,105220.0,105210.0,1.17884555]
[1762849138728,0.1447372,105220.0,105210.0,1.08376615]
[1762849138927,0.1447372,105220.0,105210.0,0.99872406]
[1762849139227,0.1447372,105220.0,105210.0,1.17884565]
[1762849140624,0.0990704,105220.0,105210.0,1.37991758]
[1762849141224,0.0990704,105220.0,105210.0,1.27388913]
[1762849141424,0.0990704,105220.0,105210.0,1.37991758]
[1762849141623,0.1434804,105220.0,105210.0,1.37991758]
[1762849141820,0.1434804,105220.0,105210.0,1.27388913]
[1762849142216,0.01264,105240.0,105220.0,0.0991628]
[1762849142423,0.1394703,105240.0,105230.0,0.25074857]
[1762849142723,0.1394703,105240.0,105230.0,0.36074857]
[1762849142928,0.1394703,105240.0,105230.0,0.25074857]
[1762849143119,0.1394703,105240.0,105230.0,0.39472012]
[1762849143315,0.1525303,105240.0,105230.0,0.13142012]
[1762849143519,0.1565303,105240.0,105230.0,0.13142012]
[1762849143719,0.1575303,105240.0,105230.0,0.13142012]
[1762849144631,0.1575303,105240.0,105230.0,0.23744857]
[1762849144823,0.1575303,105240.0,105230.0,0.13142012]
[1762849145021,0.1535303,105240.0,105230.0,0.13142012]
[1762849145322,0.1555303,105240.0,105230.0,0.14280804]
[1762849146630,0.1555303,105240.0,105230.0,0.27280804]
[1762849146930,0.1555303,105240.0,105230.0,0.24880848]
[1762849147526,0.1424703,105240.0,105230.0,0.52210848]
[1762849148321,0.1424703,105240.0,105230.0,0.61716988]
[1762849148322,0.0980603,105240.0,105230.0,0.61716988]
[1762849148517,0.26153074,105240.0,105230.0,0.14280804]
[1762849148720,0.26153074,105240.0,105230.0,0.16376639]
[1762849148920,0.1555303,105240.0,105230.0,0.24880848]
[1762849149328,0.1424703,105240.0,105230.0,0.39210848]
[1762849149529,0.1424703,105240.0,105230.0,0.55210848]
[1762849150432,0.1424703,105240.0,105230.0,0.64716988]
[1762849150628,0.1424703,105240.0,105230.0,0.55210848]
[1762849151333,0.1194503,105240.0,105230.0,0.55210848]
[1762849151521,0.0980603,105240.0,105230.0,0.64716988]
[1762849152730,0.0960603,105240.0,105230.0,0.64716988]
[1762849153330,0.0960603,105240.0,105230.0,0.75317032]
[1762849153829,0.0960603,105240.0,105230.0,0.64716988]
[1762849154030,0.0960603,105240.0,105230.0,0.55210848]
[1762849154329,0.1174503,105240.0,105230.0,0.64716998]
[1762849154629,0.1174503,105240.0,105230.0,0.55210848]
[1762849155439,0.1174503,105240.0,105230.0,0.64716998]
[1762849156531,0.1404703,105240.0,105230.0,0.74354848]
[1762849156834,0.0960603,105240.0,105230.0,1.02860988]
[1762849157331,0.0960603,105240.0,105230.0,1.10586552]
[1762849157535,0.1174503,105240.0,105230.0,1.10586552]
[1762849157935,0.0960603,105240.0,105230.0,1.10586552]
[1762849158437,0.1404703,105240.0,105230.0,1.01080412]
[1762849158737,0.1535303,105240.0,105230.0,0.33936412]
[1762849159030,0.1535303,105240.0,105230.0,0.70080412]
[1762849159224,0.1535303,105240.0,105230.0,0.84080412]
[1762849159829,0.1535303,105240.0,105230.0,0.70080412]
[1762849160531,0.1535303,105240.0,105230.0,0.33936412]
[1762849160836,0.1535303,105240.0,105230.0,0.70080412]
[1762849161131,0.1535303,105240.0,105230.0,0.32606412]
[1762849161335,0.1535303,105240.0,105230.0,0.09643001]
[1762849161336,0.72697118,105240.0,105230.0,0.09643001]
[1762849161529,0.72697118,105240.0,105230.0,0.01138792]
[1762849161728,0.1540414,105230.0,105220.0,0.12831523]
[1762849161922,0.26004184,105230.0,105220.0,0.13051326]
[1762849162136,0.26004184,105230.0,105220.0,0.14166234]
[1762849162428,0.26004184,105230.0,105220.0,0.24766278]
[1762849163037,0.26004184,105230.0,105220.0,0.26265278]
[1762849163335,0.26004184,105230.0,105220.0,0.14266234]
[1762849163741,0.1540414,105230.0,105220.0,0.14366234]
[1762849163926,0.1540414,105230.0,105220.0,0.24966278]
[1762849163927,0.26004184,105230.0,105220.0,0.24966278]
[1762849164631,0.26004184,105230.0,105220.0,0.38365278]
[1762849164632,0.1400614,105230.0,105220.0,0.38365278]
[1762849164837,0.1400614,105230.0,105220.0,0.26365278]
[1762849165134,0.24606184,105230.0,105220.0,0.26365278]
[1762849165334,0.1400614,105230.0,105220.0,0.26365278]
[1762849165737,0.26004184,105230.0,105220.0,0.26365278]
[1762849167136,0.26004184,105230.0,105220.0,0.24966278]
[1762849167338,0.26004184,105230.0,105220.0,0.14366234]
[1762849168026,0.1540414,105230.0,105220.0,0.14366234]
[1762849168226,0.1400614,105230.0,105220.0,0.26365278]
[1762849168433,0.1178414,105230.0,105220.0,0.26365278]
[1762849168631,0.1178414,105230.0,105220.0,0.56365278]
[1762849169028,0.1400614,105230.0,105220.0,0.26365278]
[1762849169233,0.26004184,105230.0,105220.0,0.24966278]
[1762849169939,0.1540414,105230.0,105220.0,0.24966278]
[1762849170138,0.26004184,105230.0,105220.0,0.24966278]
[1762849171046,0.1540414,105230.0,105220.0,0.14366234]
[1762849171340,0.26004184,105230.0,105220.0,0.24966278]
[1762849171940,0.26004184,105230.0,105220.0,0.14366234]
[1762849173243,0.1540505,105220.0,105210.0,0.11903198]
[1762849173544,0.72749138,105220.0,105210.0,0.00219803]
[1762849173746,0.72749138,105220.0,105210.0,0.01370434]
[1762849173937,0.72749138,105220.0,105210.0,0.00219803]
[1762849174238,0.26005094,105220.0,105210.0,0.02677803]
[1762849174440,0.1318305,105220.0,105210.0,0.55091441]
[1762849174638,0.0950705,105220.0,105210.0,0.57486679]
[1762849174938,0.1540505,105220.0,105210.0,0.55091441]
[1762849175340,0.1540505,105220.0,105210.0,0.55291441]
[1762849175741,0.1540505,105220.0,105210.0,0.26783481]
[1762849175937,0.26005094,105220.0,105210.0,0.04183437]
[1762849176246,0.36605138,105220.0,105210.0,0.01505634]
[1762849177345,0.36605138,105220.0,105210.0,0.004]
[1762849186149,0.1540596,105210.0,105200.0,0.09653111]
[1762849186351,0.62170004,105210.0,105200.0,0.01123317]
[1762849188140,0.62170004,105210.0,105200.0,0.0134312]
[1762849188141,0.26006004,105210.0,105200.0,0.0134312]
[1762849188347,0.62166004,105210.0,105200.0,0.0164312]
[1762849188655,0.62166004,105210.0,105200.0,0.01423317]
[1762849188948,0.62166004,105210.0,105200.0,0.01123317]
[1762849189145,0.72866048,105210.0,105200.0,0.01123317]
[1762849189646,0.72866048,105210.0,105200.0,0.0134312]
[1762849189647,0.62266004,105210.0,105200.0,0.0134312]
[1762849190950,0.26106004,105210.0,105200.0,0.0134312]
[1762849191148,0.62270004,105210.0,105200.0,0.0134312]
[1762849192851,0.72870048,105210.0,105200.0,0.0134312]
[1762849193352,0.62270004,105210.0,105200.0,0.0134312]
[1762849194251,0.62258004,105210.0,105200.0,0.0134312]
[1762849194853,0.26106004,105210.0,105200.0,0.0134312]
[1762849195054,0.62258004,105210.0,105200.0,0.0134312]